bitfinex/quotes_SOLUSD_20241116
["timestamp","ask_amount","ask_price","bid_price","bid_amount"]
[1731748731785,8.77188331,219.18,219.14,24.027864]
[1731748733087,4.5616,219.22,219.15,0.09367462]
[1731748733293,8.77188331,219.21,219.15,0.09367462]
[1731748734793,13.33368331,219.21,219.15,0.09367462]
[1731748734998,4.5618,219.21,219.15,0.09367462]
[1731748735487,13.33368331,219.21,219.15,0.09367462]
[1731748742891,4.561,219.25,219.17,0.09367462]
[1731748743101,8.77188331,219.24,219.17,24.12153862]
[1731748743702,8.77188331,219.25,219.19,0.34465462]
[1731748743885,8.77188331,219.25,219.19,24.12153862]
[1731748744201,8.77188331,219.25,219.19,0.34465462]
[1731748745090,8.77188331,219.25,219.19,24.12153862]
[1731748747200,13.33288331,219.25,219.19,24.12153862]
[1731748747398,30.0,219.2,219.19,24.12153862]
[1731748747982,13.33288331,219.25,219.19,24.12153862]
[1731748749695,20.0,219.31,219.21,30.46183862]
[1731748749909,8.77188331,219.27,219.21,30.46183862]
[1731748750811,4.5607,219.26,219.21,30.46183862]
[1731748754286,13.33298331,219.25,219.21,30.46183862]
[1731748754486,8.77188331,219.23,219.2,15.8101]
[1731748755802,4.5616,219.22,219.2,15.8101]
[1731748759894,4.5616,219.22,219.17,0.34465462]
[1731748760213,8.77188331,219.21,219.16,6.157]
[1731748761225,8.77188331,219.19,219.16,6.157]
[1731748761686,8.77188331,219.2,219.16,6.157]
[1731748762088,13.33398331,219.2,219.16,6.157]
[1731748762607,8.77188331,219.19,219.16,6.157]
[1731748762989,8.77188331,219.19,219.14,15.1575]
[1731748764510,8.77188331,219.18,219.14,15.1575]
[1731748769222,22.37679906,219.27,219.15,0.34465462]
[1731748769396,4.5607,219.26,219.17,0.21916462]
[1731748769600,8.77188331,219.24,219.17,32.76793193]
[1731748770100,4.5607,219.26,219.21,0.21916462]
[1731748770101,8.77188331,219.26,219.21,0.21916462]
[1731748773011,8.77188331,219.28,219.21,0.21916462]
[1731748773319,16.059,219.31,219.18,17.7069]
[1731748773624,8.77188331,219.22,219.15,4.5629]
[1731748774722,8.77188331,219.22,219.16,23.87055862]
[1731748777524,8.77188331,219.21,219.16,23.87055862]
[1731748778221,8.77188331,219.22,219.16,0.12549]
[1731748778426,8.77188331,219.22,219.16,4.81378]
[1731748778742,8.77188331,219.22,219.17,23.776884]
[1731748780125,7.11929906,219.3,219.18,0.34465462]
[1731748780428,8.77188331,219.24,219.18,0.34465462]
[1731748781329,8.77188331,219.24,219.18,4.90695462]
[1731748781624,8.77188331,219.24,219.2,0.34465462]
[1731748782613,8.77188331,219.24,219.19,23.776884]
[1731748782811,20.0,219.29,219.15,24.027864]
[1731748782812,8.77188331,219.2,219.15,24.027864]
[1731748783111,8.77188331,219.2,219.15,23.902374]
[1731748783435,8.77188331,219.2,219.16,0.09367462]
[1731748784228,4.5616,219.22,219.16,0.21916462]
[1731748784435,8.77188331,219.21,219.16,0.21916462]
[1731748784832,8.77188331,219.2,219.16,0.21916462]
[1731748786634,8.77188331,219.2,219.15,28.465374]
[1731748787807,8.77188331,219.19,219.15,28.465374]
[1731748788935,8.77188331,219.19,219.15,23.902374]
[1731748789112,8.77188331,219.17,219.14,15.1575]
[1731748790532,8.77188331,219.16,219.13,6.3011]
[1731748790932,8.77188331,219.15,219.09,16.1097]
[1731748791131,4.5629,219.16,219.09,16.1097]
[1731748791132,8.77188331,219.13,219.09,16.1097]
[1731748791435,8.77188331,219.11,219.07,6.7619348]
[1731748791825,8.77188331,219.1,219.07,6.7619348]
[1731748792015,8.77188331,219.09,219.07,6.7619348]
[1731748792637,8.77188331,219.1,219.07,6.7619348]
[1731748793132,0.1,219.21,219.07,6.7619348]
[1731748793133,8.77188331,219.11,219.07,6.7619348]
[1731748794341,8.77188331,219.1,219.07,6.7619348]
[1731748795938,8.77188331,219.11,219.07,6.7619348]
[1731748797931,8.77188331,219.12,219.08,23.776884]
[1731748798139,8.77188331,219.13,219.08,23.776884]
[1731748798644,8.77188331,219.14,219.08,23.776884]
[1731748799631,8.77188331,219.14,219.08,28.341284]
[1731748799833,8.77188331,219.15,219.09,0.34465462]
[1731748800041,16.0889,219.22,219.11,0.34465462]
[1731748800042,8.77188331,219.17,219.11,0.34465462]
[1731748800546,8.77188331,219.18,219.13,0.34465462]
[1731748800851,8.77188331,219.18,219.13,24.12153862]
[1731748801147,8.77188331,219.17,219.13,23.776884]
[1731748801320,8.77188331,219.16,219.13,23.776884]
[1731748801524,8.77188331,219.15,219.12,16.4754]
[1731748802247,8.77188331,219.13,219.09,23.776884]
[1731748803521,8.77188331,219.14,219.09,23.776884]
[1731748804733,8.77188331,219.16,219.1,4.90865462]
[1731748805042,8.77188331,219.18,219.12,0.34465462]
[1731748805237,8.77188331,219.2,219.12,0.34465462]
[1731748806148,8.77188331,219.2,219.14,24.12153862]
[1731748806840,8.77188331,219.18,219.11,13.33568331]
[1731748807043,8.77188331,219.15,219.11,23.776884]
[1731748807342,8.77188331,219.16,219.11,0.09367462]
[1731748807547,8.77188331,219.17,219.11,0.34465462]
[1731748807744,30.0,219.14,219.11,0.34465462]
[1731748808541,30.0,219.14,219.11,24.12153862]
[1731748808781,30.0,219.14,219.11,28.68533862]
[1731748809141,8.77188331,219.17,219.11,28.68533862]
[1731748809857,8.77188331,219.16,219.11,28.68533862]
[1731748810155,20.0,219.22,219.1,11.4103]
[1731748810156,8.77188331,219.15,219.1,11.4103]
[1731748811236,4.5618,219.21,219.06,16.4754]
[1731748811237,8.77188331,219.11,219.06,16.4754]
[1731748811650,8.77188331,219.1,219.06,16.4754]
[1731748812336,8.77188331,219.08,219.07,0.5151348]
[1731748819049,4.5644,219.09,219.07,0.5151348]
[1731748819263,8.77188331,219.08,219.07,0.5151348]
[1731748820458,4.5644,219.09,219.07,0.5151348]
[1731748820657,8.77188331,219.08,219.07,0.5151348]
[1731748820846,24.5624,219.18,219.07,0.5151348]
[1731748821159,8.77188331,219.1,219.07,0.5151348]
[1731748821337,8.77188331,219.09,219.07,0.5151348]
[1731748821542,8.77188331,219.08,219.07,0.5151348]
[1731748822144,13.33638331,219.08,219.07,0.5151348]
[1731748824745,33.33638331,219.08,219.07,0.5151348]
[1731748829755,33.33638331,219.08,218.95,11.4179]
[1731748829756,20.2,219.07,218.93,15.1009]
[1731748829958,8.77188331,219.01,218.93,15.1009]
[1731748830274,8.77188331,218.96,218.93,15.1009]
[1731748830472,8.77188331,218.97,218.93,15.1009]
[1731748833256,20.2,219.07,218.93,15.1009]
[1731748833257,4.5649,219.06,218.94,24.12153862]
[1731748833455,8.77188331,219.0,218.94,24.12153862]
[1731748834276,8.77188331,219.01,218.94,32.89342193]
[1731748834573,8.77188331,219.01,218.96,0.09367462]
[1731748834743,8.77188331,219.01,218.96,24.12153862]
[1731748837265,8.77188331,218.99,218.93,26.52]
[1731748837572,8.77188331,218.99,218.94,24.027864]
[1731748840363,8.77188331,218.99,218.94,28.595264]
[1731748841294,11.5113,219.08,218.94,28.595264]
[1731748841295,20.0,219.08,218.99,0.21916462]
[1731748841575,8.77188331,219.05,218.99,23.99604862]
[1731748842158,4.5635,219.13,219.02,0.34465462]
[1731748842366,8.77188331,219.09,219.03,23.776884]
[1731748843297,8.77188331,219.09,219.03,28.342384]
[1731748843587,8.77188331,219.08,219.03,28.342384]
[1731748844471,8.77188331,219.09,219.03,28.342384]
[1731748848395,8.77188331,219.08,219.03,28.342384]
[1731748848764,8.77188331,219.09,219.03,28.342384]
[1731748849267,8.77188331,219.08,219.02,24.12153862]
[1731748849465,8.77188331,219.08,219.02,28.68713862]
[1731748849687,8.77188331,219.09,219.02,28.68713862]
[1731748852599,8.77188331,219.04,219.01,16.6633]
[1731748852975,20.0,219.11,219.01,16.6633]
[1731748853172,8.77188331,219.07,219.01,16.6633]
[1731748854782,8.77188331,219.07,219.02,24.12153862]
[1731748854989,8.77188331,219.09,219.02,28.68723862]
[1731748855578,13.33608331,219.1,219.02,37.45912193]
[1731748855994,13.33608331,219.1,219.04,23.776884]
[1731748857481,8.77188331,219.11,219.04,23.776884]
[1731748857682,8.77188331,219.1,219.04,23.776884]
[1731748857982,4.5628,219.16,219.05,0.34465462]
[1731748858179,8.77188331,219.12,219.05,0.34465462]
[1731748859284,13.33558331,219.12,219.05,0.34465462]
[1731748860871,4.5624,219.18,219.08,23.776884]
[1731748861077,8.77188331,219.17,219.1,23.776884]
[1731748862084,13.33458331,219.17,219.1,23.776884]
[1731748863179,13.33458331,219.17,219.1,28.340784]
[1731748863388,8.77188331,219.17,219.1,28.340784]
[1731748864490,13.33458331,219.17,219.1,28.340784]
[1731748864996,8.77188331,219.15,219.1,23.776884]
[1731748865379,8.77188331,219.13,219.1,23.776884]
[1731748866494,8.77188331,219.14,219.1,23.776884]
[1731748867003,8.77188331,219.12,219.08,15.7943]
[1731748867186,8.77188331,219.11,219.08,15.7943]
[1731748868287,8.77188331,219.12,219.08,15.7943]
[1731748869102,8.77188331,219.14,219.08,15.7943]
[1731748869302,8.77188331,219.15,219.09,23.776884]
[1731748869690,30.0,219.1,219.09,23.776884]
[1731748870199,8.77188331,219.13,219.09,23.776884]
[1731748871978,8.77188331,219.13,219.08,15.7943]
[1731748872200,20.0,219.19,219.08,15.7943]
[1731748872201,8.77188331,219.12,219.08,15.7943]
[1731748872406,8.77188331,219.11,219.08,15.7943]
[1731748873610,8.77188331,219.1,219.08,15.7943]
[1731748874204,8.77188331,219.11,219.08,15.7943]
[1731748875084,8.77188331,219.09,219.05,24.027864]
[1731748875284,8.77188331,219.08,219.05,24.027864]
[1731748875502,8.77188331,219.06,219.04,16.4479]
[1731748875690,8.77188331,219.05,218.99,27.8634]
[1731748875893,8.77188331,219.02,218.99,27.8634]
[1731748876288,8.77188331,219.05,218.99,32.4298]
[1731748876600,8.77188331,219.07,218.99,41.20168331]
[1731748876785,20.0,219.11,219.0,0.09367462]
[1731748877093,8.77188331,219.07,219.01,4.566]
[1731748878098,8.77188331,219.07,219.02,23.776884]
[1731748878310,8.77188331,219.06,219.02,23.776884]
[1731748881093,20.0,219.11,219.03,0.21916462]
[1731748881291,8.77188331,219.08,219.03,0.34465462]
[1731748881700,4.5641,219.1,219.03,0.34465462]
[1731748882009,8.77188331,219.08,219.03,0.34465462]
[1731748882820,4.5638,219.12,219.04,28.342184]
[1731748882989,8.77188331,219.09,219.05,0.34465462]
[1731748884814,4.563,219.15,219.05,0.34465462]
[1731748885011,8.77188331,219.09,219.05,0.34465462]
[1731748887813,8.77188331,219.08,219.05,0.34465462]
[1731748887998,8.77188331,219.07,219.02,15.9795]
[1731748888203,8.77188331,219.05,219.0,0.12549]
[1731748888400,8.77188331,219.05,219.01,0.09367462]
[1731748888801,8.77188331,219.05,218.99,32.4302]
[1731748889211,8.77188331,219.06,219.0,0.09367462]
[1731748889517,8.77188331,219.06,219.0,23.87055862]
[1731748890192,8.77188331,219.06,219.01,4.81698]
[1731748890602,8.77188331,219.06,219.02,23.776884]
[1731748891216,8.77188331,219.07,219.02,23.776884]
[1731748891507,8.77188331,219.09,219.03,0.34465462]
[1731748891714,8.77188331,219.08,219.03,0.34465462]
[1731748892304,8.77188331,219.07,219.03,0.34465462]
[1731748893518,8.77188331,219.07,219.02,39.756984]
[1731748893722,8.77188331,219.05,219.02,11.4144]
[1731748895009,8.77188331,219.05,219.03,23.776884]
[1731748896105,8.77188331,219.06,219.03,23.776884]
[1731748905598,4.5635,219.13,219.03,23.776884]
[1731748905801,8.77188331,219.08,219.03,23.776884]
[1731748909202,8.77188331,219.06,219.03,23.776884]
[1731748909409,8.77188331,219.04,219.03,23.776884]
[1731748909609,8.77188331,219.04,219.01,23.776884]
[1731748914120,8.77188331,219.04,219.0,23.776884]
[1731748914809,8.77188331,219.06,219.01,0.34465462]
[1731748916516,8.77188331,219.04,219.0,23.776884]
[1731748917924,8.77188331,219.02,218.99,16.4479]
[1731748918135,8.77188331,219.01,218.95,15.9851]
[1731748918437,8.77188331,218.99,218.93,16.2057]
[1731748918605,8.77188331,218.98,218.93,20.7732]
[1731748919110,8.77188331,218.98,218.94,0.09367462]
[1731748919311,8.77188331,218.98,218.93,20.7732]
[1731748919712,8.77188331,218.98,218.94,24.12153862]
[1731748919912,8.77188331,218.98,218.94,23.776884]
[1731748920536,8.77188331,218.97,218.94,23.776884]
[1731748920720,0.1,219.06,218.93,16.2057]
[1731748920721,8.77188331,218.95,218.93,16.2057]
[1731748921915,8.77188331,218.95,218.94,23.776884]
[1731748923240,8.77188331,218.97,218.94,23.776884]
[1731748924522,8.77188331,218.96,218.93,16.2057]
[1731748924825,8.77188331,218.96,218.93,23.902374]
[1731748926318,8.77188331,218.97,218.93,23.902374]
[1731748931149,8.77188331,218.96,218.93,23.902374]
[1731748932125,8.77188331,218.96,218.92,6.0864]
[1731748932326,8.77188331,218.95,218.92,6.0864]
[1731748934438,8.77188331,218.94,218.92,6.0864]
[1731748935217,8.77188331,218.95,218.92,6.0864]
[1731748936443,8.77188331,218.96,218.92,6.0864]
[1731748940330,8.77188331,218.97,218.93,0.09367462]
[1731748940533,8.77188331,218.98,218.93,23.99604862]
[1731748941246,8.77188331,218.97,218.93,23.99604862]
[1731748943257,8.77188331,218.95,218.93,23.902374]
[1731748945850,8.77188331,218.96,218.93,23.902374]
[1731748946946,4.5666,218.99,218.93,23.902374]
[1731748947136,8.77188331,218.97,218.93,23.902374]
[1731748947644,20.0,219.06,218.96,0.21916462]
[1731748947947,8.77188331,219.0,218.96,0.21916462]
[1731748948328,8.77188331,219.0,218.97,0.12549]
[1731748949545,4.5659,219.02,218.98,0.09367462]
[1731748949745,8.77188331,219.04,218.99,0.34465462]
[1731748949950,8.77188331,219.04,218.99,24.12153862]
[1731748950131,8.77188331,219.04,218.99,0.34465462]
[1731748950451,8.77188331,219.01,218.99,0.34465462]
[1731748951036,8.77188331,219.02,218.99,0.34465462]
[1731748951334,4.5652,219.05,218.83,28.35096296]
[1731748951335,0.1,218.94,218.83,28.35096296]
[1731748951535,20.1,218.93,218.78,4.5706]
[1731748951755,28.77188331,218.86,218.75,6.4242]
[1731748952243,28.77188331,218.86,218.75,10.9955]
[1731748952549,20.0,218.85,218.76,0.09367462]
[1731748952847,8.77188331,218.81,218.76,0.09367462]
[1731748953031,8.77188331,218.81,218.75,10.9955]
[1731748954127,8.77188331,218.81,218.75,6.4242]
[1731748954337,8.77188331,218.79,218.75,6.4242]
[1731748955240,4.5698,218.83,218.69,4.5724]
[1731748955241,8.77188331,218.76,218.69,4.5724]
[1731748955441,8.77188331,218.76,218.69,13.34428331]
[1731748955642,8.77188331,218.77,218.69,13.34428331]
[1731748956241,8.77188331,218.75,218.69,4.5724]
[1731748956555,8.77188331,218.74,218.68,11.4322]
[1731748957242,8.77188331,218.74,218.68,16.005]
[1731748957959,8.77188331,218.74,218.7,0.12549]
[1731748958161,8.77188331,218.73,218.7,0.25098]
[1731748959534,8.77188331,218.74,218.7,0.25098]
[1731748960135,8.77188331,218.72,218.7,0.12549]
[1731748960449,8.77188331,218.73,218.69,0.34465462]
[1731748960754,8.77188331,218.74,218.69,0.34465462]
[1731748960947,8.77188331,218.74,218.69,24.12153862]
[1731748961151,8.77188331,218.75,218.69,28.69403862]
[1731748961547,8.77188331,218.73,218.69,28.69403862]
[1731748962038,8.77188331,218.73,218.69,0.09367462]
[1731748962239,8.77188331,218.71,218.67,0.12549]
[1731748962437,8.77188331,218.7,218.67,24.027864]
[1731748963058,8.77188331,218.7,218.67,0.25098]
[1731748963256,8.77188331,218.7,218.64,4.5736]
[1731748964141,8.77188331,218.69,218.65,0.09367462]
[1731748964458,8.77188331,218.69,218.66,0.12549]
[1731748965150,8.77188331,218.69,218.66,0.25098]
[1731748966956,8.77188331,218.7,218.66,0.25098]
[1731748967753,8.77188331,218.71,218.66,0.25098]
[1731748967939,8.77188331,218.72,218.66,0.25098]
[1731748968140,8.77188331,218.7,218.64,24.12153862]
[1731748968537,8.77188331,218.7,218.64,32.89342193]
[1731748968733,20.0,218.76,218.64,32.89342193]
[1731748968962,8.77188331,218.71,218.64,32.89342193]
[1731748969358,8.77188331,218.72,218.65,8.77188331]
[1731748969565,8.77188331,218.72,218.67,0.12549]
[1731748970272,8.77188331,218.72,218.66,0.34465462]
[1731748970445,8.77188331,218.71,218.66,0.34465462]
[1731748970842,4.5712,218.76,218.67,0.34465462]
[1731748971056,8.77188331,218.74,218.67,9.11653793]
[1731748971642,8.77188331,218.73,218.67,9.11653793]
[1731748972669,8.77188331,218.74,218.67,9.11653793]
[1731748973366,8.77188331,218.73,218.67,0.34465462]
[1731748973749,8.77188331,218.73,218.67,24.12153862]
[1731748975372,8.77188331,218.73,218.67,32.89342193]
[1731748975840,8.77188331,218.74,218.67,32.89342193]
[1731748976461,8.77188331,218.75,218.67,32.89342193]
[1731748977242,4.5708,218.78,218.67,32.89342193]
[1731748977443,4.5716,218.74,218.69,0.21916462]
[1731748980456,4.5716,218.74,218.66,4.5732]
[1731748980457,8.77188331,218.72,218.66,24.027864]
[1731748980662,8.77188331,218.73,218.67,0.09367462]
[1731748980850,13.34348331,218.74,218.67,8.99104793]
[1731748981551,13.34348331,218.74,218.69,0.21916462]
[1731748982871,8.77188331,218.75,218.69,0.21916462]
[1731748984260,20.0,218.78,218.69,0.21916462]
[1731748984468,8.77188331,218.75,218.69,0.21916462]
[1731748985471,8.77188331,218.78,218.73,0.21916462]
[1731748985673,8.77188331,218.79,218.72,8.77188331]
[1731748986170,8.77188331,218.78,218.71,8.77188331]
[1731748986668,13.34278331,218.78,218.71,8.77188331]
[1731748986969,13.34278331,218.78,218.71,13.34408331]
[1731748987347,4.5709,218.78,218.72,8.77188331]
[1731748987663,8.77188331,218.8,218.73,8.77188331]
[1731748987846,4.5705,218.8,218.74,8.77188331]
[1731748988468,13.34238331,218.8,218.73,8.77188331]
[1731748990657,4.5705,218.8,218.74,8.77188331]
[1731748990966,4.5705,218.8,218.75,8.77188331]
[1731748991172,4.5705,218.8,218.74,8.77188331]
[1731748991376,4.5705,218.8,218.73,8.77188331]
[1731748992847,11.424,218.84,218.73,8.77188331]
[1731748992848,24.57,218.82,218.76,8.77188331]
[1731748993050,4.57,218.82,218.76,8.77188331]
[1731748993252,8.77188331,218.8,218.73,11.4296]
[1731748993457,8.77188331,218.8,218.73,20.20148331]
[1731748993664,8.77188331,218.81,218.74,8.77188331]
[1731748993850,13.34188331,218.82,218.74,8.77188331]
[1731748995870,8.77188331,218.81,218.74,8.77188331]
[1731748996874,4.5703,218.8,218.74,8.77188331]
[1731748997780,13.34218331,218.8,218.72,8.77188331]
[1731748997966,8.77188331,218.79,218.71,8.77188331]
[1731748998169,8.77188331,218.79,218.71,0.09367462]
[1731748998485,8.77188331,218.79,218.71,8.86555793]
[1731748999589,8.77188331,218.77,218.71,0.09367462]
[1731749000080,13.34268331,218.78,218.71,4.66577462]
[1731749000583,13.34268331,218.78,218.71,13.43765793]
[1731749001271,8.77188331,218.79,218.72,8.77188331]
[1731749001579,8.77188331,218.8,218.72,8.77188331]
[1731749001783,8.77188331,218.8,218.73,0.09367462]
[1731749001960,8.77188331,218.78,218.73,0.09367462]
[1731749003086,8.77188331,218.78,218.72,4.5719]
[1731749003458,13.34268331,218.78,218.72,4.5719]
[1731749003660,8.77188331,218.77,218.72,4.5719]
[1731749004159,8.77188331,218.77,218.71,11.4306]
[1731749004484,8.77188331,218.77,218.71,16.0028]
[1731749004858,13.34288331,218.77,218.71,11.4306]
[1731749005553,8.77188331,218.75,218.68,15.2999]
[1731749005877,8.77188331,218.71,218.68,15.2999]
[1731749006074,8.77188331,218.72,218.66,16.0058]
[1731749006661,13.34398331,218.72,218.66,11.4327]
[1731749007580,8.77188331,218.71,218.66,11.4327]
[1731749008552,8.77188331,218.72,218.66,11.4327]
[1731749009260,8.77188331,218.72,218.66,16.006]
[1731749009975,8.77188331,218.7,218.66,11.4327]
[1731749011274,8.77188331,218.67,218.63,21.7691348]
[1731749011486,8.77188331,218.67,218.63,0.5151348]
[1731749011985,8.77188331,218.68,218.63,0.5151348]
[1731749015077,8.77188331,218.64,218.63,0.5151348]
[1731749018266,4.5722,218.71,218.63,0.5151348]
[1731749018463,8.77188331,218.65,218.63,0.5151348]
[1731749019071,8.77188331,218.64,218.63,0.5151348]
[1731749026071,20.0,218.71,218.63,0.5151348]
[1731749026283,8.77188331,218.66,218.63,0.5151348]
[1731749026899,8.77188331,218.65,218.63,0.5151348]
[1731749027704,8.77188331,218.64,218.63,0.5151348]
[1731749029175,8.77188331,218.65,218.63,0.5151348]
[1731749032105,8.77188331,218.64,218.63,0.5151348]
[1731749032989,4.5724,218.7,218.63,0.5151348]
[1731749032990,8.77188331,218.65,218.63,0.5151348]
[1731749033297,20.0,218.71,218.63,0.5151348]
[1731749033478,8.77188331,218.68,218.63,0.5151348]
[1731749034294,4.5718,218.73,218.64,8.77188331]
[1731749034509,8.77188331,218.71,218.64,8.77188331]
[1731749034991,8.77188331,218.72,218.65,8.89737331]
[1731749035201,8.77188331,218.72,218.66,4.5733]
[1731749036286,13.34368331,218.73,218.66,13.34518331]
[1731749037293,8.77188331,218.71,218.66,4.5733]
[1731749037695,8.77188331,218.7,218.63,20.72181811]
[1731749037901,8.77188331,218.68,218.63,0.5151348]
[1731749038581,8.77188331,218.67,218.63,0.5151348]
[1731749039182,4.5728,218.69,218.63,0.5151348]
[1731749039183,8.77188331,218.68,218.63,0.5151348]
[1731749039913,4.5728,218.69,218.63,9.28701811]
[1731749040697,4.5723,218.71,218.64,8.77188331]
[1731749040899,25.82544597,218.77,218.64,8.77188331]
[1731749040900,8.77188331,218.7,218.64,13.34538331]
[1731749041315,4.5716,218.74,218.64,13.34538331]
[1731749041616,8.77188331,218.71,218.64,13.34538331]
[1731749042318,13.34418331,218.71,218.64,13.34538331]
[1731749042488,8.77188331,218.7,218.64,4.5735]
[1731749047588,8.77188331,218.7,218.63,20.72181811]
[1731749047794,13.34438331,218.7,218.63,25.29571811]
[1731749047989,4.5725,218.7,218.64,31.19658331]
[1731749049290,8.77188331,218.69,218.64,22.4247]
[1731749049713,13.34458331,218.69,218.64,22.4247]
[1731749050589,8.77188331,218.66,218.64,15.9061]
[1731749051207,8.77188331,218.65,218.63,0.5151348]
[1731749052287,8.77188331,218.66,218.63,0.5151348]
[1731749053212,8.77188331,218.68,218.63,0.5151348]
[1731749053809,8.77188331,218.67,218.63,0.5151348]
[1731749054187,8.77188331,218.65,218.63,0.5151348]
[1731749054398,8.77188331,218.66,218.63,0.5151348]
[1731749055006,27.14897298,218.71,218.63,0.5151348]
[1731749055215,20.0,218.71,218.65,8.77188331]
[1731749055406,33.34418331,218.71,218.64,8.77188331]
[1731749055716,8.77188331,218.7,218.63,25.29551811]
[1731749056014,33.34418331,218.71,218.63,25.29551811]
[1731749056311,8.77188331,218.68,218.63,0.5151348]
[1731749056515,8.77188331,218.67,218.63,0.5151348]
[1731749057197,8.77188331,218.64,218.63,0.5151348]
[1731749058997,28.77188331,218.64,218.63,0.5151348]
[1731749060196,32.54876731,218.64,218.63,0.5151348]
[1731749060405,52.54876731,218.64,218.63,0.5151348]
[1731749060794,59.69774029,218.64,218.63,0.5151348]
[1731749061321,59.91690491,218.64,218.63,0.5151348]
[1731749063313,59.91690491,218.64,218.5,4.5765]
[1731749063314,60.011074,218.63,218.49,6.1585]
[1731749063503,8.77188331,218.53,218.49,6.1585]
[1731749063705,8.77188331,218.54,218.49,6.1585]
[1731749064139,20.0,218.61,218.49,6.1585]
[1731749064422,8.77188331,218.54,218.48,16.0192]
[1731749064593,8.77188331,218.54,218.49,0.12549]
[1731749066409,8.77188331,218.53,218.49,0.12549]
[1731749068728,8.77188331,218.53,218.49,4.70219]
[1731749068915,8.77188331,218.5,218.43,24.79488331]
[1731749069094,20.21916462,218.56,218.43,16.023]
[1731749069299,8.77188331,218.5,218.43,24.79488331]
[1731749070206,8.77188331,218.48,218.43,16.023]
[1731749070412,8.77188331,218.49,218.44,0.12549]
[1731749071296,8.77188331,218.48,218.44,0.12549]
[1731749071604,8.77188331,218.48,218.43,11.4449]
[1731749071810,4.5765,218.51,218.43,11.4449]
[1731749071811,8.77188331,218.49,218.43,11.4449]
[1731749072719,8.77188331,218.49,218.44,0.12549]
[1731749073698,8.77188331,218.5,218.44,0.12549]
[1731749074119,8.77188331,218.49,218.44,0.12549]
[1731749075418,4.5756,218.55,218.44,0.12549]
[1731749075419,8.77188331,218.5,218.44,0.12549]
[1731749075723,8.77188331,218.49,218.44,0.12549]
[1731749076105,8.77188331,218.47,218.44,0.12549]
[1731749076310,8.77188331,218.49,218.44,0.12549]
[1731749077318,8.77188331,218.49,218.44,23.902374]
[1731749078511,8.77188331,218.48,218.44,23.902374]
[1731749078842,8.77188331,218.46,218.44,23.902374]
[1731749079128,8.77188331,218.48,218.44,23.902374]
[1731749080231,8.77188331,218.47,218.44,23.776884]
[1731749080713,8.77188331,218.46,218.44,23.776884]
[1731749080914,8.77188331,218.47,218.44,23.776884]
[1731749081704,8.77188331,218.47,218.42,0.5151348]
[1731749081936,8.77188331,218.46,218.42,0.5151348]
[1731749082127,8.77188331,218.45,218.42,0.5151348]
[1731749083228,8.77188331,218.44,218.42,0.5151348]
[1731749083434,8.77188331,218.43,218.42,0.5151348]
[1731749084629,28.77188331,218.43,218.42,0.5151348]
[1731749086229,8.77188331,218.43,218.42,0.5151348]
[1731749086465,28.77188331,218.43,218.42,0.5151348]
[1731749091341,28.96555793,218.43,218.42,0.5151348]
[1731749091525,0.09367462,218.38,218.28,16.034]
[1731749091845,8.77188331,218.34,218.28,16.034]
[1731749092017,8.77188331,218.35,218.28,24.80588331]
[1731749092729,4.5797,218.36,218.28,16.034]
[1731749092730,8.77188331,218.33,218.28,16.034]
[1731749092939,8.77188331,218.33,218.29,23.776884]
[1731749093443,8.77188331,218.34,218.29,23.776884]
[1731749093961,8.77188331,218.34,218.25,22.3699]
[1731749094144,8.77188331,218.3,218.25,22.3699]
[1731749095439,8.77188331,218.3,218.2,0.5151348]
[1731749095440,8.77188331,218.26,218.2,0.5151348]
[1731749096740,8.77188331,218.25,218.2,0.5151348]
[1731749097046,8.77188331,218.24,218.2,0.5151348]
[1731749097242,8.77188331,218.23,218.2,0.5151348]
[1731749098336,8.77188331,218.22,218.2,0.5151348]
[1731749100232,8.77188331,218.23,218.2,0.5151348]
[1731749100434,4.5813,218.28,218.2,0.5151348]
[1731749100635,8.77188331,218.29,218.22,8.77188331]
[1731749100841,8.77188331,218.28,218.21,4.5827]
[1731749101041,4.6808,218.31,218.24,8.77188331]
[1731749101347,8.77188331,218.3,218.24,8.77188331]
[1731749101528,8.77188331,218.31,218.24,8.77188331]
[1731749101728,8.77188331,218.32,218.25,8.77188331]
[1731749101948,8.77188331,218.32,218.26,8.77188331]
[1731749102151,4.5798,218.35,218.28,8.77188331]
[1731749102333,8.77188331,218.32,218.25,16.0365]
[1731749102536,8.77188331,218.31,218.25,11.4547]
[1731749103528,8.77188331,218.32,218.25,20.22658331]
[1731749104040,8.77188331,218.31,218.25,11.4547]
[1731749104326,8.77188331,218.32,218.25,20.22658331]